[Event "Turniej 30-lecia Liceum im. Józefa Bema"]
[Site "Warsaw, Poland"]
[Date "????.??.??"]
[Round "3.6"]
[White "Kazmierowski, Tymon"]
[Black "Kedzierski, Slawomir"]
[Result "1-0"]
[TimeControl "0:10:02"]
[WhiteElo "1575"]
[BlackElo "2061"]

1. d4 {[%emt 00:00:17]} Nf6 2. c4 e6 {[%emt 00:00:01]} 3. Nf3 d5 4. g3 {[%emt
00:00:02]} Bb4+ {[%emt 00:00:01]} 5. Nbd2 {[%emt 00:00:04]} O-O {[%emt
00:00:05]} 6. Bg2 c5 {[%emt 00:00:03]} 7. cxd5 {[%emt 00:00:17]} Nxd5 {[%emt
00:00:04]} 8. O-O {[%emt 00:00:05]} Nc6 {[%emt 00:00:05]} 9. dxc5 {[%emt
00:00:05]} Bxc5 {[%emt 00:00:02]} 10. b3 {[%emt 00:00:20]} Nc3 {[%emt
00:00:13]} 11. Qe1 {[%emt 00:00:07]} Nb4 {[%emt 00:00:39]} 12. Nc4 {[%emt
00:00:54]} Ncxa2 {[%emt 00:00:33]} 13. Bb2 {[%emt 00:00:57]} Nc2 {[%emt
00:01:15]} 14. Qc1 {[%emt 00:00:09]} Nxc1 {[%emt 00:00:14]} 15. Raxc1 {[%emt
00:00:07]} Nb4 {[%emt 00:00:07]} 16. Rfd1 {[%emt 00:00:03]} Qe7 {[%emt
00:00:04]} 17. Nce5 {[%emt 00:00:22]} f6 {[%emt 00:00:08]} 18. Nd3 {[%emt
00:00:08]} Nxd3 {[%emt 00:00:02]} 19. Rxd3 {[%emt 00:00:02]} e5 {[%emt
00:00:15]} 20. Rdc3 {[%emt 00:00:04]} Bd6 {[%emt 00:00:07]} 21. Nd2 {[%emt
00:00:29]} Be6 {[%emt 00:00:13]} 22. Bxb7 {[%emt 00:00:16]} 1-0

[Event "Turniej 30-lecia Liceum im. Józefa Bema"]
[Site "Warsaw, Poland"]
[Date "????.??.??"]
[Round "3.7"]
[White "Krasiewicz, Robert"]
[Black "Grzenkowicz, Lukasz"]
[Result "1-0"]
[TimeControl "0:10:02"]
[WhiteElo "1948"]
[BlackElo "1546"]

1. c4 {[%clk 00:10:03]} {[%emt 00:00:20]} e5 {[%clk 00:10:02]} {[%emt
00:00:02]} 2. g3 {[%clk 00:10:05]} {[%emt 00:00:01]} Nf6 {[%clk 00:09:58]}
{[%emt 00:00:05]} 3. Bg2 {[%clk 00:10:06]} {[%emt 00:00:01]} Nc6 {[%clk
00:09:59]} 4. Nc3 {[%clk 00:10:06]} {[%emt 00:00:02]} d6 {[%clk 00:10:00]} 5.
d3 {[%clk 00:10:07]} {[%emt 00:00:01]} Be7 {[%clk 00:10:01]} {[%emt 00:00:01]}
6. e4 {[%clk 00:10:07]} {[%emt 00:00:01]} O-O {[%clk 00:10:02]} {[%emt
00:00:02]} 7. Nge2 {[%clk 00:10:08]} h6 {[%clk 00:10:02]} {[%emt 00:00:02]} 8.
O-O {[%clk 00:10:08]} {[%emt 00:00:02]} Be6 {[%clk 00:10:02]} {[%emt 00:00:02]}
9. h3 {[%clk 00:10:09]} Qc8 {[%clk 00:10:03]} {[%emt 00:00:01]} 10. Kh2 {[%clk
00:10:10]} Nd4 {[%clk 00:09:57]} {[%emt 00:00:08]} 11. Nxd4 {[%clk 00:09:51]}
{[%emt 00:00:21]} exd4 {[%clk 00:09:58]} {[%emt 00:00:02]} 12. Ne2 {[%clk
00:09:52]} {[%emt 00:00:01]} c5 {[%clk 00:09:52]} {[%emt 00:00:07]} 13. f4
{[%clk 00:09:52]} {[%emt 00:00:01]} Bd7 {[%clk 00:09:44]} {[%emt 00:00:11]} 14.
g4 {[%clk 00:09:37]} {[%emt 00:00:16]} Bc6 {[%clk 00:09:13]} {[%emt 00:00:33]}
15. Ng3 {[%clk 00:09:32]} {[%emt 00:00:07]} Rb8 {[%clk 00:08:17]} {[%emt
00:00:58]} 16. Nf5 {[%clk 00:09:16]} {[%emt 00:00:18]} Qd7 {[%clk 00:08:02]}
{[%emt 00:00:17]} 17. g5 {[%clk 00:08:51]} {[%emt 00:00:27]} hxg5 {[%clk
00:07:12]} {[%emt 00:00:52]} 18. fxg5 {[%clk 00:08:48]} {[%emt 00:00:05]} Nh7
{[%clk 00:07:06]} {[%emt 00:00:08]} 19. h4 {[%clk 00:08:28]} {[%emt 00:00:22]}
g6 {[%clk 00:06:46]} {[%emt 00:00:22]} 20. Bh3 {[%clk 00:07:42]} {[%emt
00:00:48]} Qc7 {[%clk 00:04:44]} {[%emt 00:02:02]} 21. Bf4 {[%clk 00:07:12]}
{[%emt 00:00:34]} f6 {[%clk 00:02:21]} {[%emt 00:02:25]} 22. Qg4 {[%clk
00:04:49]} {[%emt 00:02:24]} gxf5 {[%clk 00:00:44]} {[%emt 00:01:40]} 23. exf5
{[%clk 00:04:50]} {[%emt 00:00:02]} fxg5 {[%clk 00:00:27]} {[%emt 00:00:18]} 24.
hxg5 {[%clk 00:04:50]} {[%emt 00:00:01]} Bd7 {[%clk 00:00:18]} {[%emt
00:00:11]} 25. g6 {[%clk 00:04:29]} {[%emt 00:00:24]} Nf6 {[%clk 00:00:12]}
{[%emt 00:00:09]} 26. Qh4 {[%clk 00:04:26]} {[%emt 00:00:03]} Be8 {[%clk
00:00:09]} {[%emt 00:00:06]} 27. Bg5 {[%clk 00:04:22]} {[%emt 00:00:07]} Ng4+
{[%clk 00:00:06]} {[%emt 00:00:04]} 28. Bxg4 {[%clk 00:04:19]} {[%emt
00:00:05]} Bxg5 {[%clk 00:00:05]} {[%emt 00:00:05]} 29. Qxg5 {[%clk 00:04:07]}
{[%emt 00:00:16]} d5+ {[%clk 00:00:06]} 30. Kh3 {[%clk 00:03:53]} {[%emt
00:00:17]} Qd6 {[%clk 00:00:05]} {[%emt 00:00:04]} 31. f6 {[%clk 00:03:45]}
{[%emt 00:00:10]} Bd7 {[%clk 00:00:06]} 32. Qxd5+ {[%clk 00:03:11]} {[%emt
00:00:36]} Qxd5 {[%clk 00:00:06]} {[%emt 00:00:02]} 33. cxd5 {[%clk 00:03:11]}
{[%emt 00:00:02]} Bxg4+ {[%clk 00:00:05]} {[%emt 00:00:03]} 34. Kxg4 {[%clk
00:03:12]} Rfe8 {[%clk 00:00:03]} {[%emt 00:00:04]} 35. f7+ {[%clk 00:03:11]}
1-0

[Event "Turniej 30-lecia Liceum im. Józefa Bema"]
[Site "Warsaw, Poland"]
[Date "????.??.??"]
[Round "3.8"]
[White "Sen, Mariusz"]
[Black "Siekierski, Pawel"]
[Result "0-1"]
[TimeControl "0:10:02"]
[WhiteElo "1501"]
[BlackElo "1889"]

1. e4 {[%clk 00:10:01]} {[%emt 00:00:20]} c5 {[%clk 00:10:04]} {[%emt
00:00:01]} 2. c4 {[%clk 00:10:01]} {[%emt 00:00:03]} d6 {[%clk 00:10:03]}
{[%emt 00:00:02]} 3. Nc3 {[%clk 00:10:01]} {[%emt 00:00:02]} Nc6 {[%clk
00:10:03]} {[%emt 00:00:03]} 4. Nf3 {[%clk 00:09:54]} {[%emt 00:00:08]} g6
{[%clk 00:10:04]} {[%emt 00:00:02]} 5. b3 {[%clk 00:09:41]} {[%emt 00:00:15]}
Bg7 {[%clk 00:10:04]} {[%emt 00:00:01]} 6. Bb2 {[%clk 00:09:42]} {[%emt
00:00:01]} Bg4 {[%clk 00:10:00]} {[%emt 00:00:06]} 7. Be2 {[%clk 00:09:41]}
{[%emt 00:00:03]} e6 {[%clk 00:10:01]} {[%emt 00:00:01]} 8. h3 {[%clk
00:09:29]} {[%emt 00:00:14]} Bxf3 {[%clk 00:10:01]} {[%emt 00:00:02]} 9. Bxf3
{[%clk 00:09:29]} {[%emt 00:00:02]} Nge7 {[%clk 00:09:53]} {[%emt 00:00:10]} 10.
Rb1 {[%clk 00:08:49]} {[%emt 00:00:42]} O-O {[%clk 00:09:52]} {[%emt 00:00:03]}
11. O-O {[%clk 00:08:48]} {[%emt 00:00:02]} Nd4 {[%clk 00:09:34]} {[%emt
00:00:21]} 12. Nb5 {[%clk 00:06:25]} {[%emt 00:02:24]} Nec6 {[%clk 00:08:22]}
{[%emt 00:01:15]} 13. Re1 {[%clk 00:05:06]} {[%emt 00:01:20]} a6 {[%clk
00:08:14]} {[%emt 00:00:10]} 14. Na3 {[%clk 00:04:26]} {[%emt 00:00:42]} Nb4
{[%clk 00:07:15]} {[%emt 00:01:01]} 15. d3 {[%clk 00:04:02]} {[%emt 00:00:26]}
Nxa2 {[%clk 00:07:00]} {[%emt 00:00:16]} 16. Be2 {[%clk 00:03:28]} {[%emt
00:00:37]} Nb4 {[%clk 00:06:46]} {[%emt 00:00:16]} 17. f4 {[%clk 00:03:24]}
{[%emt 00:00:05]} Nbc6 {[%clk 00:06:28]} {[%emt 00:00:21]} 18. Bf3 {[%clk
00:03:16]} {[%emt 00:00:10]} Nxf3+ {[%clk 00:06:18]} {[%emt 00:00:13]} 19. Qxf3
{[%clk 00:03:15]} {[%emt 00:00:02]} Nd4 {[%clk 00:06:19]} {[%emt 00:00:01]} 20.
Qd1 {[%clk 00:03:08]} {[%emt 00:00:08]} b5 {[%clk 00:05:51]} {[%emt 00:00:30]}
21. cxb5 {[%clk 00:02:52]} {[%emt 00:00:18]} axb5 {[%clk 00:05:52]} {[%emt
00:00:02]} 22. Bxd4 {[%clk 00:02:49]} {[%emt 00:00:04]} Bxd4+ {[%clk 00:05:52]}
{[%emt 00:00:02]} 23. Kh1 {[%clk 00:02:50]} {[%emt 00:00:01]} Rxa3 {[%clk
00:05:48]} {[%emt 00:00:06]} 24. e5 {[%clk 00:02:29]} {[%emt 00:00:22]} dxe5
{[%clk 00:05:42]} {[%emt 00:00:08]} 25. fxe5 {[%clk 00:02:29]} {[%emt
00:00:02]} Qd5 {[%clk 00:05:42]} {[%emt 00:00:02]} 26. b4 {[%clk 00:01:23]}
{[%emt 00:01:08]} Ra2 {[%clk 00:05:11]} {[%emt 00:00:32]} 27. Re2 {[%clk
00:01:23]} {[%emt 00:00:02]} Rxe2 {[%clk 00:05:08]} {[%emt 00:00:05]} 28. Qxe2
{[%clk 00:01:24]} {[%emt 00:00:01]} cxb4 {[%clk 00:04:52]} {[%emt 00:00:17]} 29.
Rxb4 {[%clk 00:01:25]} {[%emt 00:00:02]} Bxe5 {[%clk 00:04:49]} {[%emt
00:00:06]} 0-1

[Event "Turniej 30-lecia Liceum im. Józefa Bema"]
[Site "Warsaw, Poland"]
[Date "????.??.??"]
[Round "3.9"]
[White "Niedbal, Piotr"]
[Black "Pancewicz, Szymon"]
[Result "1/2-1/2"]
[TimeControl "0:10:02"]
[WhiteElo "1856"]
[BlackElo "1477"]

1. e4 {[%clk 00:10:03]} {[%emt 00:00:02]} c5 {[%clk 00:10:02]} 2. Nf3 {[%clk
00:10:04]} {[%emt 00:00:01]} e6 {[%clk 00:10:02]} {[%emt 00:00:02]} 3. d4
{[%clk 00:10:05]} {[%emt 00:00:01]} cxd4 {[%clk 00:10:01]} {[%emt 00:00:03]} 4.
Nxd4 {[%clk 00:10:05]} {[%emt 00:00:02]} Nc6 {[%clk 00:10:02]} {[%emt
00:00:02]} 5. Nc3 {[%clk 00:10:02]} {[%emt 00:00:05]} a6 {[%clk 00:10:02]}
{[%emt 00:00:02]} 6. Be2 {[%clk 00:09:56]} {[%emt 00:00:08]} d6 {[%clk
00:09:34]} {[%emt 00:00:30]} 7. O-O {[%clk 00:09:50]} {[%emt 00:00:08]} Bd7
{[%clk 00:09:15]} {[%emt 00:00:21]} 8. Be3 {[%clk 00:09:30]} {[%emt 00:00:21]}
Nf6 {[%clk 00:09:05]} {[%emt 00:00:12]} 9. f4 {[%clk 00:09:21]} {[%emt
00:00:11]} Be7 {[%clk 00:08:44]} {[%emt 00:00:23]} 10. Qe1 {[%clk 00:09:08]}
{[%emt 00:00:15]} b5 {[%clk 00:08:30]} {[%emt 00:00:16]} 11. a3 {[%clk
00:08:55]} {[%emt 00:00:15]} O-O {[%clk 00:08:15]} {[%emt 00:00:16]} 12. Qg3
{[%clk 00:08:48]} {[%emt 00:00:09]} Qb8 {[%clk 00:06:56]} {[%emt 00:01:21]} 13.
f5 {[%clk 00:08:04]} {[%emt 00:00:46]} Nxd4 {[%clk 00:06:21]} {[%emt 00:00:36]}
14. Bxd4 {[%clk 00:07:47]} {[%emt 00:00:19]} e5 {[%clk 00:05:59]} {[%emt
00:00:25]} 15. Be3 {[%clk 00:07:47]} {[%emt 00:00:02]} Rc8 {[%clk 00:05:50]}
{[%emt 00:00:11]} 16. Bg5 {[%clk 00:07:36]} {[%emt 00:00:13]} b4 {[%clk
00:05:09]} {[%emt 00:00:44]} 17. axb4 {[%clk 00:07:29]} {[%emt 00:00:09]} Qxb4
{[%clk 00:05:08]} {[%emt 00:00:03]} 18. Bxf6 {[%clk 00:07:27]} {[%emt
00:00:03]} Bxf6 {[%clk 00:05:05]} {[%emt 00:00:05]} 19. Nd5 {[%clk 00:07:22]}
{[%emt 00:00:08]} Qd4+ {[%clk 00:04:14]} {[%emt 00:00:53]} 20. Kh1 {[%clk
00:07:02]} {[%emt 00:00:22]} Kh8 {[%clk 00:03:53]} {[%emt 00:00:22]} 21. Nxf6
{[%clk 00:05:44]} {[%emt 00:01:21]} gxf6 {[%clk 00:03:00]} {[%emt 00:00:55]} 22.
Qh4 {[%clk 00:05:35]} {[%emt 00:00:10]} Rg8 {[%clk 00:02:32]} {[%emt 00:00:30]}
23. Qxf6+ {[%clk 00:05:34]} {[%emt 00:00:03]} Rg7 {[%clk 00:02:31]} {[%emt
00:00:02]} 24. Rxa6 {[%clk 00:04:44]} {[%emt 00:00:53]} Rxa6 {[%clk 00:02:12]}
{[%emt 00:00:22]} 25. Bxa6 {[%clk 00:04:42]} {[%emt 00:00:03]} Qxe4 {[%clk
00:02:03]} {[%emt 00:00:12]} 26. Rg1 {[%clk 00:02:49]} {[%emt 00:01:55]} Bc6
{[%clk 00:02:03]} {[%emt 00:00:02]} 27. Bd3 {[%clk 00:02:22]} {[%emt 00:00:29]}
Qd5 {[%clk 00:01:48]} {[%emt 00:00:17]} 28. h3 {[%clk 00:01:50]} {[%emt
00:00:33]} e4 {[%clk 00:01:38]} {[%emt 00:00:13]} 29. Be2 {[%clk 00:01:44]}
{[%emt 00:00:09]} e3 {[%clk 00:00:59]} {[%emt 00:00:41]} 30. Bf3 {[%clk
00:01:35]} {[%emt 00:00:11]} Qc5 {[%clk 00:00:59]} {[%emt 00:00:01]} 31. Bxc6
{[%clk 00:01:00]} {[%emt 00:00:37]} Qxc6 {[%clk 00:01:00]} {[%emt 00:00:01]} 32.
Qc3 {[%clk 00:00:49]} {[%emt 00:00:11]} Qe4 {[%clk 00:00:47]} {[%emt 00:00:16]}
33. Qd3 {[%clk 00:00:40]} {[%emt 00:00:11]} Qe5 {[%clk 00:00:42]} {[%emt
00:00:07]} 34. Re1 {[%clk 00:00:26]} {[%emt 00:00:16]} Rg3 {[%clk 00:00:33]}
{[%emt 00:00:11]} 35. Qc3 {[%clk 00:00:26]} {[%emt 00:00:02]} Qxc3 {[%clk
00:00:34]} {[%emt 00:00:01]} 36. bxc3 {[%clk 00:00:27]} {[%emt 00:00:01]} e2
{[%clk 00:00:36]} 37. Rxe2 {[%clk 00:00:26]} {[%emt 00:00:03]} Rxc3 {[%clk
00:00:37]} {[%emt 00:00:01]} 38. Rd2 {[%clk 00:00:27]} Kg7 {[%clk 00:00:27]}
{[%emt 00:00:11]} 39. Rxd6 {[%clk 00:00:23]} {[%emt 00:00:07]} Rxc2 {[%clk
00:00:28]} 40. Kh2 {[%clk 00:00:19]} {[%emt 00:00:06]} Rc3 {[%clk 00:00:28]}
{[%emt 00:00:02]} 41. Kg1 {[%clk 00:00:16]} {[%emt 00:00:04]} Rc2 {[%clk
00:00:29]} {[%emt 00:00:02]} 42. Kh2 {[%clk 00:00:17]} {[%emt 00:00:01]} Rc3
{[%clk 00:00:30]} {[%emt 00:00:01]} 43. Rd4 {[%clk 00:00:17]} {[%emt 00:00:02]}
Kf6 {[%clk 00:00:29]} {[%emt 00:00:03]} 44. Rh4 {[%clk 00:00:18]} {[%emt
00:00:01]} Kg7 {[%clk 00:00:23]} {[%emt 00:00:07]} 45. Rg4+ {[%clk 00:00:16]}
{[%emt 00:00:04]} Kf6 {[%clk 00:00:24]} {[%emt 00:00:01]} 46. Rh4 {[%clk
00:00:17]} Kg7 {[%clk 00:00:25]} 47. Rf4 {[%clk 00:00:14]} {[%emt 00:00:06]}
Kf6 {[%clk 00:00:25]} {[%emt 00:00:03]} 48. g4 {[%clk 00:00:12]} {[%emt
00:00:04]} Kg5 {[%clk 00:00:23]} {[%emt 00:00:04]} 49. Ra4 {[%clk 00:00:12]}
{[%emt 00:00:02]} Rc2+ {[%clk 00:00:22]} {[%emt 00:00:03]} 50. Kg1 {[%clk
00:00:11]} {[%emt 00:00:02]} Rc1+ {[%clk 00:00:23]} 51. Kg2 {[%clk 00:00:13]}
Rc2+ {[%clk 00:00:24]} {[%emt 00:00:01]} 52. Kg3 {[%clk 00:00:13]} Rc3+ {[%clk
00:00:25]} 53. Kg2 {[%clk 00:00:14]} {[%emt 00:00:01]} 1/2-1/2

[Event "Turniej 30-lecia Liceum im. Józefa Bema"]
[Site "Warsaw, Poland"]
[Date "????.??.??"]
[Round "3.10"]
[White "Jankiewicz, Maciej"]
[Black "Bielinski, Leszek"]
[Result "0-1"]
[TimeControl "0:10:02"]
[WhiteElo "1369"]
[BlackElo "1854"]

1. e4 {[%clk 00:10:03]} {[%emt 00:00:02]} e5 {[%clk 00:10:03]} 2. Nf3 {[%clk
00:10:04]} {[%emt 00:00:01]} Nf6 {[%clk 00:10:04]} 3. Nxe5 {[%clk 00:10:03]}
{[%emt 00:00:03]} d6 {[%clk 00:10:05]} {[%emt 00:00:01]} 4. Nf3 {[%clk
00:10:03]} {[%emt 00:00:01]} Nxe4 {[%clk 00:10:05]} {[%emt 00:00:01]} 5. d3
{[%clk 00:09:59]} {[%emt 00:00:07]} Nf6 {[%clk 00:10:04]} {[%emt 00:00:03]} 6.
Qe2+ {[%clk 00:09:58]} {[%emt 00:00:03]} Be7 {[%clk 00:10:04]} {[%emt
00:00:02]} 7. Bg5 {[%clk 00:09:57]} {[%emt 00:00:03]} O-O {[%clk 00:10:03]}
{[%emt 00:00:03]} 8. h4 {[%clk 00:09:49]} {[%emt 00:00:10]} Bg4 {[%clk
00:10:00]} {[%emt 00:00:04]} 9. Nc3 {[%clk 00:09:38]} {[%emt 00:00:14]} Nc6
{[%clk 00:10:00]} {[%emt 00:00:02]} 10. O-O-O {[%clk 00:09:38]} {[%emt
00:00:02]} Re8 {[%clk 00:09:50]} {[%emt 00:00:12]} 11. Qd2 {[%clk 00:09:24]}
{[%emt 00:00:16]} Qd7 {[%clk 00:09:34]} {[%emt 00:00:18]} 12. Re1 {[%clk
00:09:21]} {[%emt 00:00:05]} Qf5 {[%clk 00:08:40]} {[%emt 00:00:57]} 13. Nh2
{[%clk 00:09:04]} {[%emt 00:00:19]} h6 {[%clk 00:08:08]} {[%emt 00:00:33]} 14.
f3 {[%clk 00:08:31]} {[%emt 00:00:34]} hxg5 {[%clk 00:08:04]} {[%emt 00:00:06]}
15. fxg4 {[%clk 00:08:22]} {[%emt 00:00:12]} Nxg4 {[%clk 00:07:58]} {[%emt
00:00:08]} 16. Ne4 {[%clk 00:07:48]} {[%emt 00:00:35]} Nxh2 {[%clk 00:07:30]}
{[%emt 00:00:31]} 17. Rxh2 {[%clk 00:07:44]} {[%emt 00:00:06]} Qf4 {[%clk
00:07:31]} {[%emt 00:00:01]} 18. Qxf4 {[%clk 00:07:30]} {[%emt 00:00:16]} gxf4
{[%clk 00:07:31]} {[%emt 00:00:02]} 19. Be2 {[%clk 00:07:17]} {[%emt 00:00:16]}
d5 {[%clk 00:07:30]} {[%emt 00:00:04]} 20. Nc3 {[%clk 00:07:13]} {[%emt
00:00:05]} Rad8 {[%clk 00:06:25]} {[%emt 00:01:05]} 21. Bf3 {[%clk 00:07:08]}
{[%emt 00:00:08]} d4 {[%clk 00:06:15]} {[%emt 00:00:12]} 22. Bxc6 {[%clk
00:06:29]} {[%emt 00:00:42]} bxc6 {[%clk 00:06:15]} {[%emt 00:00:02]} 23. Nd1
{[%clk 00:06:12]} {[%emt 00:00:18]} Bd6 {[%clk 00:06:01]} {[%emt 00:00:16]} 24.
Rhh1 {[%clk 00:06:12]} {[%emt 00:00:03]} Bb4 {[%clk 00:05:50]} {[%emt
00:00:12]} 25. c3 {[%clk 00:05:14]} {[%emt 00:01:00]} dxc3 {[%clk 00:05:51]}
{[%emt 00:00:01]} 26. bxc3 {[%clk 00:05:14]} {[%emt 00:00:02]} Bc5 {[%clk
00:05:17]} {[%emt 00:00:36]} 27. d4 {[%clk 00:04:44]} {[%emt 00:00:32]} Be7
{[%clk 00:05:13]} {[%emt 00:00:06]} 28. h5 {[%clk 00:04:42]} {[%emt 00:00:04]}
c5 {[%clk 00:05:12]} {[%emt 00:00:03]} 29. Re4 {[%clk 00:04:37]} {[%emt
00:00:07]} cxd4 {[%clk 00:05:09]} {[%emt 00:00:05]} 30. Rhe1 {[%clk 00:04:32]}
{[%emt 00:00:06]} Ba3+ {[%clk 00:05:08]} {[%emt 00:00:04]} 31. Kc2 {[%clk
00:04:29]} {[%emt 00:00:05]} Rxe4 {[%clk 00:05:07]} {[%emt 00:00:02]} 32. Rxe4
{[%clk 00:04:30]} dxc3 {[%clk 00:04:58]} {[%emt 00:00:12]} 33. Nxc3 {[%clk
00:04:01]} {[%emt 00:00:31]} Bd6 {[%clk 00:04:52]} {[%emt 00:00:07]} 34. Nd5
{[%clk 00:03:49]} {[%emt 00:00:12]} f5 {[%clk 00:04:42]} {[%emt 00:00:14]} 35.
Ne7+ {[%clk 00:03:37]} {[%emt 00:00:14]} Kf7 {[%clk 00:04:37]} {[%emt
00:00:05]} 36. Nxf5 {[%clk 00:03:37]} {[%emt 00:00:04]} g5 {[%clk 00:03:48]}
{[%emt 00:00:51]} 37. hxg6+ {[%clk 00:02:54]} {[%emt 00:00:45]} Kxg6 {[%clk
00:03:49]} 38. Nh4+ {[%clk 00:02:52]} {[%emt 00:00:04]} Kg5 {[%clk 00:03:29]}
{[%emt 00:00:20]} 39. Nf3+ {[%clk 00:02:53]} Kf5 {[%clk 00:03:30]} {[%emt
00:00:04]} 40. Ra4 {[%clk 00:02:43]} {[%emt 00:00:11]} Rg8 {[%clk 00:03:24]}
{[%emt 00:00:07]} 41. Rxa7 {[%clk 00:02:41]} {[%emt 00:00:05]} Rxg2+ {[%emt
00:00:17]} 0-1

[Event "Turniej 30-lecia Liceum im. Józefa Bema"]
[Site "Warsaw, Poland"]
[Date "????.??.??"]
[Round "4.1"]
[White "Owczarzak, Jerzy"]
[Black "Rylski, Tadeusz"]
[Result "1-0"]
[TimeControl "0:10:02"]
[WhiteElo "2264"]
[BlackElo "1358"]

1. b4 {[%clk 00:10:01]} {[%emt 00:00:02]} e5 {[%clk 00:10:00]} {[%emt
00:00:05]} 2. Bb2 {[%clk 00:10:03]} Bxb4 {[%clk 00:09:29]} {[%emt 00:00:32]} 3.
Bxe5 {[%clk 00:10:03]} {[%emt 00:00:01]} Nf6 {[%clk 00:09:29]} {[%emt
00:00:02]} 4. Nf3 {[%clk 00:10:04]} Nc6 {[%clk 00:09:26]} {[%emt 00:00:06]} 5.
Bb2 {[%clk 00:10:05]} O-O {[%clk 00:09:21]} {[%emt 00:00:06]} 6. e3 {[%clk
00:10:07]} d5 {[%clk 00:09:00]} {[%emt 00:00:24]} 7. Be2 {[%clk 00:10:07]}
{[%emt 00:00:01]} Bg4 {[%clk 00:08:39]} {[%emt 00:00:23]} 8. h3 {[%clk
00:10:08]} {[%emt 00:00:02]} Bh5 {[%clk 00:08:35]} {[%emt 00:00:06]} 9. O-O
{[%clk 00:10:08]} {[%emt 00:00:02]} Re8 {[%clk 00:08:30]} {[%emt 00:00:07]} 10.
d3 {[%clk 00:10:08]} {[%emt 00:00:02]} Qd6 {[%clk 00:07:58]} {[%emt 00:00:34]}
11. a3 {[%clk 00:09:38]} {[%emt 00:00:32]} Ba5 {[%clk 00:07:48]} {[%emt
00:00:12]} 12. Nbd2 {[%clk 00:09:38]} {[%emt 00:00:02]} Rad8 {[%clk 00:07:45]}
{[%emt 00:00:05]} 13. Rb1 {[%clk 00:08:48]} {[%emt 00:00:52]} Bb6 {[%clk
00:07:25]} {[%emt 00:00:22]} 14. c4 {[%clk 00:08:23]} {[%emt 00:00:27]} Bxf3
{[%clk 00:06:14]} {[%emt 00:01:12]} 15. Bxf3 {[%clk 00:08:22]} {[%emt
00:00:03]} d4 {[%clk 00:06:09]} {[%emt 00:00:07]} 16. e4 {[%clk 00:07:14]}
{[%emt 00:01:09]} Ne5 {[%clk 00:06:00]} {[%emt 00:00:12]} 17. Be2 {[%clk
00:07:14]} {[%emt 00:00:02]} Ng6 {[%clk 00:05:45]} {[%emt 00:00:16]} 18. g3
{[%clk 00:07:02]} {[%emt 00:00:14]} Ba5 {[%clk 00:04:39]} {[%emt 00:01:09]} 19.
Kg2 {[%clk 00:06:03]} {[%emt 00:01:01]} Bxd2 {[%clk 00:04:21]} {[%emt
00:00:20]} 20. Qxd2 {[%clk 00:06:03]} {[%emt 00:00:01]} Qe7 {[%clk 00:03:37]}
{[%emt 00:00:45]} 21. f4 {[%clk 00:05:50]} {[%emt 00:00:17]} c5 {[%clk
00:02:59]} {[%emt 00:00:40]} 22. Bf3 {[%clk 00:05:49]} {[%emt 00:00:02]} b6
{[%emt 00:00:18]} 23. a4 {[%clk 00:05:49]} {[%emt 00:00:02]} Nd7 {[%clk
00:02:35]} {[%emt 00:00:11]} 24. h4 {[%clk 00:05:30]} {[%emt 00:00:21]} Ngf8
{[%clk 00:02:01]} {[%emt 00:00:35]} 25. a5 {[%clk 00:05:13]} {[%emt 00:00:20]}
Rb8 {[%clk 00:01:47]} {[%emt 00:00:15]} 26. Ba3 {[%clk 00:05:06]} {[%emt
00:00:10]} Ne6 {[%clk 00:01:21]} {[%emt 00:00:27]} 27. Rb2 {[%clk 00:04:13]}
{[%emt 00:00:55]} h6 {[%clk 00:00:45]} {[%emt 00:00:38]} 28. h5 {[%clk
00:03:50]} {[%emt 00:00:25]} Kh7 {[%clk 00:00:43]} {[%emt 00:00:04]} 29. Rfb1
{[%clk 00:03:49]} {[%emt 00:00:03]} g5 {[%clk 00:00:20]} {[%emt 00:00:25]} 30.
hxg6+ {[%clk 00:03:39]} {[%emt 00:00:12]} fxg6 {[%clk 00:00:21]} {[%emt
00:00:01]} 31. Rh1 {[%clk 00:03:12]} {[%emt 00:00:28]} Ng7 {[%clk 00:00:10]}
{[%emt 00:00:13]} 32. Rbb1 {[%clk 00:02:58]} {[%emt 00:00:16]} Nf6 {[%emt
00:00:06]} 33. f5 {[%clk 00:02:30]} {[%emt 00:00:30]} g5 {[%clk 00:00:07]}
{[%emt 00:00:02]} 34. Qxg5 {[%clk 00:02:26]} {[%emt 00:00:06]} Ng8 {[%clk
00:00:03]} {[%emt 00:00:06]} 35. Qg6+ {[%clk 00:02:15]} {[%emt 00:00:13]} Kh8
{[%clk 00:00:04]} 36. axb6 {[%clk 00:01:59]} {[%emt 00:00:18]} axb6 {[%clk
00:00:04]} {[%emt 00:00:01]} 37. Rxb6 {[%clk 00:01:51]} {[%emt 00:00:10]} Rxb6
{[%clk 00:00:05]} 38. Qxb6 {[%clk 00:01:52]} {[%emt 00:00:01]} Qg5 {[%clk
00:00:05]} {[%emt 00:00:02]} 39. Bc1 {[%clk 00:01:50]} {[%emt 00:00:04]} Qe7
{[%clk 00:00:00]} {[%emt 00:00:06]} 1-0